Cogmind - Beta 9.6 @@@ ROGUE MODE // 2020.07.23 @ 16:42:12 Player: Vulpy Result: Destroyed by D-53 Grenadier with Mini Grenade Launcher Performance ------------- Evolutions (0) 0 Regions Visited (2) 400 Robots Destroyed (15) 75 Value Destroyed (223) 223 Prototype IDs (0) 0 Alien Tech Used (0) 0 Bonus (0) 0 TOTAL SCORE: 698 Bonus ------- None Cogmind --------- Core Integrity 0/250 Matter 256/300 Energy 111/125 System Corruption 1% Temperature Cool (0) Movement Treading (200) Ox2 Location -10/Mines Parts ------- > --- POWER (1) -------- Light Ion Engine > --- PROPULSION (2) --- Light Treads > --- UTILITY (2) ------ Large Storage Unit High-capacity Storage Unit > --- WEAPON (2) ------- Light Assault Rifle Light Assault Rifle > --- INVENTORY (18) --- Light Treads Wheel Wheel Wheel Medium Storage Unit Large Storage Unit Structural Scanner Sensor Array Sensor Array Sensor Array Peak State ------------ > --- POWER ------------ Ion Engine > --- PROPULSION ------- Light Treads Wheel > --- UTILITY ---------- Large Storage Unit Large Storage Unit > --- WEAPON ----------- EM Pulse Gun Small Laser > --- INVENTORY -------- Ion Engine Light Treads Wheel Wheel Wheel Compact Wheel Small Storage Unit Small Storage Unit Sensor Array Light Assault Rifle [Rating: 8] Favorites ----------- Power Ion Engine Engine Ion Engine Propulsion Light Treads Treads Light Treads Leg Aluminum Leg Wheel Wheel Utility Large Storage Unit Storage Large Storage Unit Weapon EM Pulse Gun Energy Gun EM Pulse Gun Ballistic Gun Light Assault Rifle Launcher Grenade Launcher Build | -11 -10 -10 ------- Run | Scr Mat Min Slots Evolved . | . . . Power . | . . . Propulsion . | . . . Utility . | . . . Weapon . | . . . Parts Attached 16 | 4 4 8 Power 2 | . . 2 Engine 2 | . . 2 Core . | . . . Reactor . | . . . Propulsion 6 | 3 1 2 Treads 4 | 1 1 2 Leg 1 | 1 . . Wheel 1 | 1 . . Hover . | . . . Flight . | . . . Utility 4 | 1 2 1 Device . | . . . Storage 4 | 1 2 1 Processor . | . . . Hackware . | . . . Protection . | . . . Artifact . | . . . Weapon 4 | . 1 3 Energy Gun 1 | . 1 . Energy Cannon . | . . . Ballistic Gun 2 | . . 2 Ballistic Cannon . | . . . Launcher 1 | . . 1 Special Weapon . | . . . Impact Weapon . | . . . Slashing Weapon . | . . . Piercing Weapon . | . . . Special Melee Weapon . | . . . Unidentified Prototypes . | . . . Parts Lost 8 | . 1 7 Power 2 | . . 2 Propulsion 3 | . . 3 Utility . | . . . Weapon 3 | . 1 2 Highest Loss Streak 7 | . 1 7 Average Slot Usage (%) 99 | . 99 98 Engine 14 | . 14 14 Treads 14 | . 14 14 Wheel 13 | . 14 13 Storage 28 | . 28 28 Energy Gun 21 | . 27 14 Launcher 5 | . . 12 Naked Turns . | . . . Heaviest Build 58 | 16 40 58 Greatest Support 40 | 20 20 40 Greatest Overweight (x) 5 | 1 3 5 Average Overweight (x) 3 | . 2 4 Largest Inventory Capacity 18 | 8 16 18 Average Capacity 14 | 7 14 16 Most Carried 17 | 8 16 17 Average Carried 14 | 6 13 16 Final Capacity 18 | 8 16 18 Final Carried 16 | 8 16 10 Class Distribution -------------------- 100% | Mutant Dominant Class ---------------- Mutant | -10/Materials Mutant | -10/Mines Resources | -11 -10 -10 ----------- Run | Scr Mat Min Matter Collected 310 | 240 30 40 Remotely . | . . . Salvage Created 443 | 156 262 25 Parts 30 | 8 16 6 Haulers Intercepted . | . . . Recyclers Shooed . | . . . Parts Field Recycled . | . . . Retrieved Matter . | . . . Parts Self-Destructed . | . . . Prevented . | . . . Kills | -11 -10 -10 ------- Run | Scr Mat Min Combat Hostiles Destroyed 8 | . 5 3 Guns 5 | . 5 . AOE 3 | . . 3 Classes Destroyed 6 | 2 4 . Tunneler 3 | 3 . . Recycler 1 | 1 . . Operator 1 | . 1 . Watcher 2 | . 2 . Swarmer 6 | . 3 3 Grunt 2 | . 2 . Best Kill Streak 6 | 2 6 3 Combat Bots Only 4 | . 4 3 Max Kills in Single Turn 3 | 1 1 3 Gunslinging . | . . . Exploded 3 | . . 3 Melee . | . . . Uniques/NPCs Destroyed . | . . . Combat | -11 -10 -10 -------- Run | Scr Mat Min Damage Taken 1055 | . 211 844 Core 269 | . 18 251 Absorbed by Shields . | . . . Core Remaining (%) 100 | 100 . . Volleys Fired 31 | 7 21 3 Largest 2 | 2 2 2 Hottest 80 | 80 80 40 Shots Fired 57 | 14 38 5 Gun 56 | 14 38 4 Cannon . | . . . Launcher 1 | . . 1 Special . | . . . Kinetic 4 | . . 4 Thermal 24 | 7 17 . Explosive 1 | . . 1 Electromagnetic 28 | 7 21 . Robot Hit Streak 8 | 4 8 3 Robot Miss Streak 3 | 2 3 1 Penetration Max . | . . . Secondary Targets 1 | . 1 . Max Gunslinging Chain 1 | . 1 . Shots Hit Robots 33 | 8 22 3 Core Hits 20 | 5 10 5 Critical Hits . | . . . Critical Kills . | . . . Critical Parts Destroyed . | . . . Melee Attacks . | . . . Impact . | . . . Slashing . | . . . Piercing . | . . . Sneak Attacks . | . . . Combat Hostiles . | . . . Follow-up Attacks . | . . . Damage Inflicted 543 | 116 326 101 Guns 387 | 93 274 20 Cannons . | . . . Explosions 156 | 23 52 81 Melee . | . . . Ramming . | . . . Kinetic 20 | . . 20 Thermal 165 | 47 118 . Explosive 81 | . . 81 Electromagnetic 277 | 69 208 . Impact . | . . . Slashing . | . . . Piercing . | . . . Highest Corruption 1 | . . 1 Average Corruption 1 | . . 1 Corruption Purged . | . . . Overload Shots . | . . . Overflow Damage . | . . . Projectiles . | . . . Explosions . | . . . Melee . | . . . Knockbacks . | . . . Impact . | . . . Kinetic . | . . . Secondary . | . . . Self-Inflicted Damage . | . . . Shots . | . . . Rammed . | . . . Targets Rammed . | . . . Kicked . | . . . Crushed . | . . . Highest Temperature 199 | 54 199 . Average Temperature 75 | 24 93 . Received Heat Transfer 66 | . 66 . Siege Activations . | . . . Robots Corrupted . | . . . Combat Hostiles . | . . . Parts Fried . | . . . Impact Corruptions . | . . . Robots Melted . | . . . Combat Hostiles . | . . . Parts Melted . | . . . Heat Transferred 350 | 100 250 . Parts Sabotaged . | . . . Parts Stolen . | . . . Parts Stripped . | . . . Power Chain Reactions 3 | 1 2 . Missiles Intercepted . | . . . Alert | -11 -10 -10 ------- Run | Scr Mat Min Peak Influence 189 | 20 189 98 Average Influence 80 | 8 99 68 Maximum Alert Level . | . . . Low Security (%) 100 | 100 100 100 Level 1 . | . . . Level 2 . | . . . Level 3 . | . . . Level 4 . | . . . Level 5 . | . . . High Security . | . . . Max Security . | . . . Squads Dispatched 3 | . 3 . Investigation 1 | . 1 . Extermination . | . . . Reinforcement 2 | . 2 . Assault . | . . . Garrison . | . . . Intercept . | . . . Construction Impeded . | . . . Haulers Reinforced . | . . . Stealth | -11 -10 -10 --------- Run | Scr Mat Min Distress Signals 2 | . 2 . Communications Jammed . | . . . Distress Signals . | . . . Times Spotted 17 | . 12 5 Peak Tracking Total 5 | . 5 3 Tactical Retreats 1 | . 1 . Traps | -11 -10 -10 ------- Run | Scr Mat Min Traps Triggered 1 | . 1 . Indirectly . | . . . Trap Hack Attempts . | . . . Triggered . | . . . Disarmed . | . . . Reprogrammed . | . . . Reused . | . . . Traps Extracted . | . . . Installed . | . . . Triggered . | . . . Machines | -11 -10 -10 ---------- Run | Scr Mat Min Machines Disabled 2 | . 1 1 Max in Single Turn 1 | . 1 1 Machines Sabotaged . | . . . Garrisons Compromised . | . . . Overloaded Fab Kills . | . . . Fab Network Shutdowns . | . . . Hacking | -11 -10 -10 --------- Run | Scr Mat Min Machines Accessed 5 | . 5 . Terminals 5 | . 5 . Fabricators . | . . . Repair Stations . | . . . Recycling Units . | . . . Scanalyzers . | . . . Garrison Access . | . . . Total Hacks 12 | . 12 . Successful 7 | . 7 . Failed 5 | . 5 . Catastrophic 1 | . 1 . Database Lockouts . | . . . Manual 5 | . 5 . Terminals 12 | . 12 . Fabricators . | . . . Repair Stations . | . . . Recycling Units . | . . . Scanalyzers . | . . . Garrison Access . | . . . Terminal Hacks 5 | . 5 . Robot Analysis 1 | . 1 . Branch Access Points 1 | . 1 . Alert Level 1 | . 1 . Hauler Manifests 1 | . 1 . Zone Layout 1 | . 1 . Fabricator Hacks . | . . . Repair Station Hacks . | . . . Recycling Unit Hacks . | . . . Scanalyzer . | . . . Garrison Access Hacks . | . . . Unauthorized Hacks 2 | . 2 . Terminals 2 | . 2 . Botnet 2 | . 2 . Fabricators . | . . . Repair Stations . | . . . Recycling Units . | . . . Scanalyzers . | . . . Garrison Access . | . . . Data Cores Recovered 1 | . 1 . Used 1 | . 1 . Hacking Detections 4 | . 4 . Full Trace Events . | . . . Feedback Events . | . . . Feedback Blocked . | . . . Robot Schematics Acquired . | . . . Robots Built . | . . . Matter . | . . . Time . | . . . Total Robot Build Rating . | . . . Part Schematics Acquired . | . . . Parts Built . | . . . Matter . | . . . Time . | . . . Total Part Build Rating . | . . . Parts Repaired . | . . . Time . | . . . Parts Recycled . | . . . Recycled Matter . | . . . Retrieved Matter . | . . . Retrieved Components . | . . . Parts Scanalyzed . | . . . Part Schematics Acquired . | . . . Parts Damaged . | . . . Bothacking | -11 -10 -10 ------------ Run | Scr Mat Min Used RIF Installer . | . . . Robots Hacked . | . . . Non-combat . | . . . Combat . | . . . Robot Hacks Applied . | . . . Relay Couplers Released . | . . . Robots Rewired . | . . . Allies Hacked . | . . . Hacks Repelled . | . . . Allies | -11 -10 -10 -------- Run | Scr Mat Min Total Allies 3 | . . 3 Largest Group 3 | . . 3 Highest-Rated Group 40 | . . 40 Highest-Rated Ally 16 | . . 16 Total Orders . | . . . Ally Attacks 6 | . . 6 Total Damage 76 | . . 76 Kills . | . . . Allies Corrupted . | . . . Allies Melted . | . . . Intel | -11 -10 -10 ------- Run | Scr Mat Min Robot Analysis Total 1 | . 1 . Derelict Logs Recovered 1 | . . 1 Drone Launches . | . . . Drone Recoveries . | . . . Exploration | -11 -10 -10 ------------- Run | Scr Mat Min Turns Passed 1170 | 69 592 509 Spaces Moved 848 | 33 429 386 Core . | . . . Treads 60 | . 55 5 Legs 26 | 26 . . Wheels 762 | 7 374 381 Hover . | . . . Flight . | . . . Fastest Speed 90 | 90 90 110 Average Speed 118 | 113 115 122 Slowest Speed 200 | 120 180 200 Overloaded Moves . | . . . Propulsion Burnouts . | . . . Robots Hopped . | . . . Cave-ins Triggered 1 | . . 1 Exploration Rate (%) 41 | 4 54 65 Regions Visited 2 Branch Regions 1 Pre-discovered Areas 1 | . . 1 Known Exits Taken 1 | . 1 . Unknown Exits Taken 1 | 1 . . Scrap Searched 1 | . . 1 Spaces Dug . | . . . Terrain Destroyed 14 | 3 5 6 Melee . | . . . Projectile . | . . . AOE 14 | 3 5 6 Actions | -11 -10 -10 --------- Run | Scr Mat Min Total 962 | 50 492 420 Wait 35 | . 17 18 Move 846 | 32 428 386 Hop . | . . . Pick Up 20 | 4 14 2 Fast Attach 2 | 2 . . Attach 8 | 1 1 6 Detach . | . . . Swap 6 | 1 3 2 Drop 14 | 3 8 3 Fire 31 | 7 21 3 Melee . | . . . Ram . | . . . Kick . | . . . Crush . | . . . Escape Stasis . | . . . Rewire . | . . . Trap . | . . . Miscellaneous . | . . . Route ------- -11/Scrapyard -10/Materials (discovered 2 exits: [*Mat] / *Min) -10/Mines (discovered 1 exit: [*Mat]) History --------- Turn | Location | Event 3 | -11/Scrapyard | Discovered new exit (range 3) 70 | -11/Scrapyard | Entered Materials 316 | -10/Materials | Build established: Mutant 516 | -10/Materials | Discovered new exit (range 13) 518 | -10/Materials | Identified exit to Mines 548 | -10/Materials | Discovered new exit (range 14) 662 | -10/Materials | Entered Mines 966 | -10/Mines | Discovered new exit (range 9) 982 | -10/Mines | Assisted by bots powering up and referring to "LRC-V3" 1084 | -10/Mines | Learned location of Zion (-7) 1115 | -10/Mines | Assembled infested the area 1156 | -10/Mines | Crushed by falling debris 1162 | -10/Mines | Core integrity fell below 50% 1165 | -10/Mines | Core integrity fell below 20% 1171 | -10/Mines | Destroyed by D-53 Grenadier with Mini Grenade Launcher Last Messages --------------- 01149_ The unstable cave ceiling collapses. 01149_ U-05 Engineer lays Concrete. 01151_ U-05 Engineer builds a Wall. 01153_ Ion Engine destroyed. 01153_ Wheel destroyed. 01155_ U-05 Engineer lays Concrete. 01156_ The unstable cave ceiling collapses. 01156_ Crushed by falling debris. 01156_ Ion Engine destroyed. 01156_ System corrupted by crushing effect (+1). 01156_ U-05 Engineer lays Concrete. 01156_ R-06 Scavenger collects Wheel. 01158_ U-05 Engineer builds a Wall. 01159_ Grenade Launcher destroyed. 01163_ Lgt. Treads destroyed. 01165_ The unstable cave ceiling collapses. 01165_ Dropped Lgt. Assault Rifle. 01169_ The unstable cave ceiling collapses. 01169_ Lgt. Treads destroyed. 01170_ The unstable cave ceiling collapses. Map ----- +----------------------------------------------------+ | ?????????????????????????????????????????????????? | | ?????????????????????????????????????????????????? | | ?????????????????????????????????????????????????? | | ?????????????????????????????????????????????????? | | ?????????????????????????????????????????????????? | | ?????????????????????????????????????????????????? | | ?????????????????????????????????????????????????? | | ???????????????????????? ???????????????????????? | | ??????????????????????? ?????????????????????? | | ??????????????????????# ?????????????????????? | | ???????????????????### ????????????????????? | | ?????#####????????? ????????????????????? | | ????## ##?????? ????????????????????? | | ????? ###??# ??????????????????????? | | ??????? ##?# #???????????????????????? | | ????????# ### #????????????????????????? | | ?????????? #????????????????????????? | | ???????????# #?????###????????????????? | | ????????????# ####### ?????????????????? | | ????????????# ### ??????????????????? | | ????????????# ## ?????????####??????? | | ???????????## ## #????????## ##?????? | | ??#####????# ##?# ##??????## ##????? | | ?## #?## ##??# #??????# #????? | | ## # ## #???# #??????# #????? | | # ### ##??## @ #???????# #????? | | ## #### #???????## ##????? | | # d ##???????# ##?????? | | % ### d # #???????# #??????? | | "" ??## ##???????# #??????? | | "" #???### ####??#####?# #??????? | | "" # #??????# ##????## ### #??????# | | ###????????## ##?????# ## ##?????# | | ##???????????# # ##??????# ##????# | | #????????????## #???????## ###?## | | #????????????## ######????????# ### | | ##??####???????##??????????????# | | %##??## ##??????????????????????## | | ##??# ####?????????#########??#### | | ##??# ##????????# #?????# | | ##??# ##???????# #????## | | #### #??###### #???## ##### | | ## ## #??# ## #???# ##???## | | #### ##??# ## #???# #?????# | | ???# ## #???# ## #???## ##?????# | | ???# ## #??## ####### ##????## ##??????# | | ???## ## #??# ###### ######## ##?????## | | ????# # #### ## ###??## | | ????## # %[ ##### ###### ## #### | | ?????## # < #???# ###??# ## ## | +----------------------------------------------------+ Best States ------------- Heat Dissipation 25 Energy Generation 10 Energy Capacity 250 Matter Stores 300 Matter Capacity 300 Sight Range 16 Terrain Scan Density 10 Evasion (%) 42 Recoil Reduction 2 Item Schematics ----------------- None Robot Schematics ------------------ None Fabricated ------------ Nothing Alien Tech Used ----------------- None Achievements -------------- Dynamic Key Challenges ------------ None Game ------ Seed CoordinationSignalScrap Manual? 0 Play Time 00:39:26 Cumulative 47.5 hours Start 2020.07.23 @ 15:40:59 End 2020.07.23 @ 16:42:12 Sessions 5 Manual Loads 0 Difficulty Rogue Special Mode None Game No. 42 Rogue 40 Adventurer 2 Explorer 0 Win Type - Total 0 Types 0/0/0/0/0/0/0 Lore% 24 Gallery% 34 Achievement% 23 Wizard Run 0 Options --------- ASCII 0 Keyboard 0 Movement Numpad Keybinds 0 Fullscreen 2 Font 20/Terminus Map View 66x50 Tactical HUD 1 Map Filters NONE Filters NONE Steam 1 RUN: 62abe260-eb4c-468a-a7a9-52463b647f16